[Event "Titled Tuesday Blitz August 08 Early 2023"]
[White "Mazurkiewicz, Michal"]
[Black "Deng, Henry"]
[WhiteFideId "1124943"]
[BlackFideId "30965454"]
[WhiteElo "2407"]
[BlackElo "2566"]
[Result "0-1"]
[Round "11"]
[TimeControl "180+1"]
[Date "2023.08.08"]
[WhiteClock "0:00:00"]
[BlackClock "0:00:11"]
[Board "73"]

1. e4 {[%clk 0:03:00]}  c5 {[%clk 0:02:59]} 2. Nf3 {[%clk 0:03:00]}  e6 {[%clk 0:03:00]} 3. d3 {[%clk 0:03:00]}  d5 {[%clk 0:02:59]} 4. Nbd2 {[%clk 0:03:00]}  Nc6 {[%clk 0:02:59]} 5. g3 {[%clk 0:03:00]}  g6 {[%clk 0:02:58]} 6. Bg2 {[%clk 0:03:00]}  Bg7 {[%clk 0:02:59]} 7. O-O {[%clk 0:03:00]}  Nge7 {[%clk 0:03:00]} 8. Re1 {[%clk 0:03:01]}  O-O {[%clk 0:03:00]} 9. e5 {[%clk 0:03:00]}  b5 {[%clk 0:02:58]} 10. Nf1 {[%clk 0:02:59]}  a5 {[%clk 0:02:58]} 11. h4 {[%clk 0:02:59]}  h5 {[%clk 0:02:56]} 12. Bf4 {[%clk 0:02:58]}  b4 {[%clk 0:02:54]} 13. Qd2 {[%clk 0:02:44]}  Nf5 {[%clk 0:02:43]} 14. Bh3 {[%clk 0:02:44]}  Ncd4 {[%clk 0:02:42]} 15. Nxd4 {[%clk 0:02:38]}  Nxd4 {[%clk 0:02:42]} 16. Bg2 {[%clk 0:02:31]}  Re8 {[%clk 0:02:39]} 17. Ne3 {[%clk 0:02:25]}  Ba6 {[%clk 0:02:36]} 18. c3 {[%clk 0:02:25]}  bxc3 {[%clk 0:02:36]} 19. bxc3 {[%clk 0:02:25]}  Nc6 {[%clk 0:02:36]} 20. d4 {[%clk 0:02:18]}  cxd4 {[%clk 0:02:34]} 21. cxd4 {[%clk 0:02:19]}  Qb6 {[%clk 0:02:34]} 22. Rad1 {[%clk 0:02:12]}  Rab8 {[%clk 0:02:31]} 23. g4 {[%clk 0:02:12]}  hxg4 {[%clk 0:02:27]} 24. Nxg4 {[%clk 0:02:13]}  Qb2 {[%clk 0:02:13]} 25. Qe3 {[%clk 0:02:12]}  Ne7 {[%clk 0:02:08]} 26. Bh3 {[%clk 0:01:39]}  Nf5 {[%clk 0:02:06]} 27. Nf6+ {[%clk 0:01:39]}  Bxf6 {[%clk 0:02:05]} 28. Bxf5 {[%clk 0:01:39]}  exf5 {[%clk 0:02:05]} 29. Qg3 {[%clk 0:01:04]}  Bg7 {[%clk 0:01:52]} 30. e6 {[%clk 0:01:03]}  Rbd8 {[%clk 0:01:47]} 31. h5 {[%clk 0:00:58]}  Qb7 {[%clk 0:01:10]} 32. hxg6 {[%clk 0:00:42]}  fxg6 {[%clk 0:01:08]} 33. Qxg6 {[%clk 0:00:42]}  Rc8 {[%clk 0:00:29]} 34. Bh6 {[%clk 0:00:30]}  Re7 {[%clk 0:00:27]} 35. Bg5 {[%clk 0:00:26]}  Rce8 {[%clk 0:00:24]} 36. Re3 {[%clk 0:00:21]}  Qc7 {[%clk 0:00:20]} 37. Rde1 {[%clk 0:00:17]}  f4 {[%clk 0:00:20]} 38. Rh3 {[%clk 0:00:17]}  Qd6 {[%clk 0:00:16]} 39. Qh7+ {[%clk 0:00:14]}  Kf8 {[%clk 0:00:17]} 40. Rf3 {[%clk 0:00:11]}  Rxe6 {[%clk 0:00:13]} 41. Rxe6 {[%clk 0:00:08]}  Rxe6 {[%clk 0:00:10]} 42. Rxf4+ {[%clk 0:00:09]}  Bf6 {[%clk 0:00:11]} 43. Qh8+ {[%clk 0:00:07]}  Kf7 {[%clk 0:00:11]} 44. Qh7+ {[%clk 0:00:07]}  Kf8 {[%clk 0:00:11]} 45. Bh6+ {[%clk 0:00:08]}  Ke8 {[%clk 0:00:11]} 46. Qg8+ {[%clk 0:00:08]}  Kd7 {[%clk 0:00:11]} 47. Qf7+ {[%clk 0:00:09]}  Kc6 {[%clk 0:00:12]} 48. Rf3 {[%clk 0:00:05]}  Bxd4 {[%clk 0:00:12]} 49. Qa7 {[%clk 0:00:00]}  Bxa7 {[%clk 0:00:11]} 0-1


[Site "https://www.chess.com"]

[Event "Titled Tuesday Blitz August 08 Early 2023"]
[White "Melikhov, Evgeny V."]
[Black "Moral Garcia, Serafin"]
[WhiteFideId "4122046"]
[BlackFideId "2201925"]
[WhiteElo "2380"]
[BlackElo "2548"]
[Result "0-1"]
[Round "11"]
[TimeControl "180+1"]
[Date "2023.08.08"]
[WhiteClock "0:00:31"]
[BlackClock "0:01:42"]
[Board "75"]

1. d4 {[%clk 0:03:00]}  Nf6 {[%clk 0:02:59]} 2. c4 {[%clk 0:03:00]}  g6 {[%clk 0:02:58]} 3. Nc3 {[%clk 0:03:01]}  d5 {[%clk 0:02:59]} 4. Nf3 {[%clk 0:02:59]}  Bg7 {[%clk 0:02:58]} 5. e3 {[%clk 0:02:59]}  O-O {[%clk 0:02:54]} 6. Be2 {[%clk 0:03:00]}  c5 {[%clk 0:02:51]} 7. O-O {[%clk 0:03:00]}  cxd4 {[%clk 0:02:49]} 8. exd4 {[%clk 0:02:59]}  dxc4 {[%clk 0:02:45]} 9. Bxc4 {[%clk 0:02:58]}  Nc6 {[%clk 0:02:45]} 10. h3 {[%clk 0:02:55]}  Na5 {[%clk 0:02:44]} 11. Be2 {[%clk 0:02:51]}  Be6 {[%clk 0:02:44]} 12. Re1 {[%clk 0:02:49]}  Rc8 {[%clk 0:02:43]} 13. Bg5 {[%clk 0:02:47]}  h6 {[%clk 0:02:42]} 14. Be3 {[%clk 0:02:46]}  Bc4 {[%clk 0:02:40]} 15. Rc1 {[%clk 0:02:21]}  Bxe2 {[%clk 0:02:38]} 16. Rxe2 {[%clk 0:02:20]}  Nc4 {[%clk 0:02:35]} 17. b3 {[%clk 0:02:21]}  Nb6 {[%clk 0:02:35]} 18. Qd2 {[%clk 0:02:11]}  Kh7 {[%clk 0:02:34]} 19. Rce1 {[%clk 0:02:08]}  Nbd5 {[%clk 0:02:32]} 20. Nxd5 {[%clk 0:02:08]}  Nxd5 {[%clk 0:02:32]} 21. Bf4 {[%clk 0:01:51]}  Nxf4 {[%clk 0:02:20]} 22. Qxf4 {[%clk 0:01:51]}  e6 {[%clk 0:02:20]} 23. Ne5 {[%clk 0:01:45]}  Qd5 {[%clk 0:02:12]} 24. Nxf7 {[%clk 0:01:23]}  e5 {[%clk 0:02:04]} 25. dxe5 {[%clk 0:00:59]}  Rxf7 {[%clk 0:02:00]} 26. Qa4 {[%clk 0:00:56]}  a6 {[%clk 0:01:56]} 27. e6 {[%clk 0:00:56]}  Re7 {[%clk 0:01:56]} 28. Qb4 {[%clk 0:00:49]}  Rce8 {[%clk 0:01:56]} 29. Qb6 {[%clk 0:00:44]}  Bd4 {[%clk 0:01:52]} 30. Rd1 {[%clk 0:00:31]}  Bxf2+ {[%clk 0:01:42]} 0-1


[Site "https://www.chess.com"]

[Event "Titled Tuesday Blitz August 08 Early 2023"]
[White "Agibileg, Uurtsaikh"]
[Black "Souleidis, Georgios"]
[WhiteFideId "4901606"]
[BlackFideId "4206827"]
[WhiteElo "2654"]
[BlackElo "2545"]
[Result "1-0"]
[Round "11"]
[TimeControl "180+1"]
[Date "2023.08.08"]
[WhiteClock "0:01:47"]
[BlackClock "0:00:10"]
[Board "76"]

1. d4 {[%clk 0:03:00]}  Nf6 {[%clk 0:03:00]} 2. c4 {[%clk 0:03:00]}  g6 {[%clk 0:02:59]} 3. Nc3 {[%clk 0:03:01]}  Bg7 {[%clk 0:02:59]} 4. e4 {[%clk 0:03:00]}  d6 {[%clk 0:03:00]} 5. Be2 {[%clk 0:03:01]}  O-O {[%clk 0:03:00]} 6. Nf3 {[%clk 0:03:01]}  e5 {[%clk 0:03:00]} 7. O-O {[%clk 0:03:01]}  Bg4 {[%clk 0:03:00]} 8. d5 {[%clk 0:02:54]}  a5 {[%clk 0:02:58]} 9. Be3 {[%clk 0:02:52]}  Na6 {[%clk 0:02:58]} 10. Ne1 {[%clk 0:02:49]}  Bd7 {[%clk 0:02:57]} 11. Nd3 {[%clk 0:02:49]}  b6 {[%clk 0:02:58]} 12. a3 {[%clk 0:02:48]}  Nc5 {[%clk 0:02:58]} 13. f3 {[%clk 0:02:48]}  a4 {[%clk 0:02:55]} 14. Nxc5 {[%clk 0:02:39]}  bxc5 {[%clk 0:02:56]} 15. b4 {[%clk 0:02:38]}  axb3 {[%clk 0:02:54]} 16. Qxb3 {[%clk 0:02:39]}  Nh5 {[%clk 0:02:53]} 17. Rfb1 {[%clk 0:02:39]}  f5 {[%clk 0:02:53]} 18. a4 {[%clk 0:02:38]}  Nf4 {[%clk 0:02:53]} 19. Bf1 {[%clk 0:02:38]}  Qg5 {[%clk 0:02:45]} 20. Kh1 {[%clk 0:02:38]}  Qe7 {[%clk 0:02:35]} 21. a5 {[%clk 0:02:37]}  fxe4 {[%clk 0:02:34]} 22. fxe4 {[%clk 0:02:35]}  Bf6 {[%clk 0:02:19]} 23. a6 {[%clk 0:02:35]}  Ra7 {[%clk 0:02:15]} 24. Nb5 {[%clk 0:02:28]}  Bxb5 {[%clk 0:02:14]} 25. cxb5 {[%clk 0:02:29]}  Rb8 {[%clk 0:02:09]} 26. Bxc5 {[%clk 0:02:24]}  Raa8 {[%clk 0:01:50]} 27. Bg1 {[%clk 0:02:17]}  Nh5 {[%clk 0:01:46]} 28. Rc1 {[%clk 0:02:15]}  Bg5 {[%clk 0:01:45]} 29. Rc2 {[%clk 0:02:13]}  Nf6 {[%clk 0:01:46]} 30. Qc4 {[%clk 0:02:10]}  Ne8 {[%clk 0:01:36]} 31. g3 {[%clk 0:02:05]}  h5 {[%clk 0:01:36]} 32. Bh3 {[%clk 0:02:05]}  Kh7 {[%clk 0:01:35]} 33. Rf1 {[%clk 0:02:03]}  h4 {[%clk 0:01:18]} 34. Be6 {[%clk 0:02:03]}  Kh6 {[%clk 0:01:02]} 35. Rf7 {[%clk 0:02:02]}  Qd8 {[%clk 0:01:03]} 36. gxh4 {[%clk 0:01:53]}  Bxh4 {[%clk 0:01:03]} 37. Rc3 {[%clk 0:01:54]}  g5 {[%clk 0:00:35]} 38. Qe2 {[%clk 0:01:51]}  Ng7 {[%clk 0:00:10]} 39. Rcxc7 {[%clk 0:01:47]} 1-0


[Site "https://www.chess.com"]

[Event "Titled Tuesday Blitz August 08 Early 2023"]
[White "Dehtiarov, Roman"]
[Black "Ncatt"]
[WhiteFideId "14186640"]
[WhiteElo "2639"]
[BlackElo "2367"]
[Result "1-0"]
[Round "11"]
[TimeControl "180+1"]
[Date "2023.08.08"]
[WhiteClock "0:00:04"]
[BlackClock "0:00:11"]
[Board "77"]

1. c4 {[%clk 0:03:00]}  c6 {[%clk 0:02:58]} 2. Nf3 {[%clk 0:02:57]}  d5 {[%clk 0:02:59]} 3. e3 {[%clk 0:02:54]}  Nf6 {[%clk 0:02:58]} 4. Nc3 {[%clk 0:02:54]}  e6 {[%clk 0:02:55]} 5. b3 {[%clk 0:02:54]}  Nbd7 {[%clk 0:02:55]} 6. Bb2 {[%clk 0:02:54]}  Bd6 {[%clk 0:02:55]} 7. Rc1 {[%clk 0:02:52]}  a6 {[%clk 0:02:56]} 8. d4 {[%clk 0:02:52]}  O-O {[%clk 0:02:50]} 9. Bd3 {[%clk 0:02:52]}  e5 {[%clk 0:02:49]} 10. dxe5 {[%clk 0:02:52]}  Nxe5 {[%clk 0:02:50]} 11. cxd5 {[%clk 0:02:52]}  cxd5 {[%clk 0:02:43]} 12. Be2 {[%clk 0:02:47]}  Be6 {[%clk 0:02:29]} 13. O-O {[%clk 0:02:45]}  Qd7 {[%clk 0:02:26]} 14. Na4 {[%clk 0:02:37]}  Nxf3+ {[%clk 0:02:21]} 15. Bxf3 {[%clk 0:02:38]}  Rad8 {[%clk 0:02:21]} 16. Bxf6 {[%clk 0:02:37]}  gxf6 {[%clk 0:02:21]} 17. Nb6 {[%clk 0:02:35]}  Qe7 {[%clk 0:02:18]} 18. Nxd5 {[%clk 0:02:32]}  Bxd5 {[%clk 0:02:17]} 19. Bxd5 {[%clk 0:02:32]}  Qe5 {[%clk 0:02:12]} 20. g3 {[%clk 0:02:20]}  Ba3 {[%clk 0:02:10]} 21. Qg4+ {[%clk 0:02:14]}  Kh8 {[%clk 0:02:07]} 22. Be4 {[%clk 0:02:05]}  Bxc1 {[%clk 0:02:05]} 23. Rxc1 {[%clk 0:02:06]}  Rd2 {[%clk 0:02:01]} 24. Bb1 {[%clk 0:01:08]}  Rfd8 {[%clk 0:01:53]} 25. Rf1 {[%clk 0:01:06]}  Qg5 {[%clk 0:01:16]} 26. Qf3 {[%clk 0:01:04]}  Kg7 {[%clk 0:01:11]} 27. h4 {[%clk 0:00:54]}  Qd5 {[%clk 0:01:11]} 28. Be4 {[%clk 0:00:53]}  Qd6 {[%clk 0:01:01]} 29. Qg4+ {[%clk 0:00:44]}  Kf8 {[%clk 0:01:00]} 30. Bf3 {[%clk 0:00:33]}  Rxa2 {[%clk 0:00:58]} 31. Qf5 {[%clk 0:00:32]}  Qe5 {[%clk 0:00:56]} 32. Qxh7 {[%clk 0:00:28]}  Ra1 {[%clk 0:00:55]} 33. Qc2 {[%clk 0:00:22]}  b5 {[%clk 0:00:50]} 34. h5 {[%clk 0:00:15]}  b4 {[%clk 0:00:49]} 35. h6 {[%clk 0:00:11]}  Rxf1+ {[%clk 0:00:47]} 36. Kxf1 {[%clk 0:00:12]}  Kg8 {[%clk 0:00:43]} 37. Qc4 {[%clk 0:00:09]}  Kh7 {[%clk 0:00:39]} 38. Qxb4 {[%clk 0:00:06]}  Kxh6 {[%clk 0:00:37]} 39. Qh4+ {[%clk 0:00:06]}  Kg7 {[%clk 0:00:37]} 40. Qg4+ {[%clk 0:00:06]}  Kf8 {[%clk 0:00:37]} 41. Qb4+ {[%clk 0:00:06]}  Qd6 {[%clk 0:00:37]} 42. Qa4 {[%clk 0:00:05]}  Rb8 {[%clk 0:00:37]} 43. Kg2 {[%clk 0:00:05]}  Qb6 {[%clk 0:00:35]} 44. Qa3+ {[%clk 0:00:05]}  Kg7 {[%clk 0:00:34]} 45. Bd5 {[%clk 0:00:05]}  Qb5 {[%clk 0:00:32]} 46. e4 {[%clk 0:00:05]}  a5 {[%clk 0:00:31]} 47. Qa1 {[%clk 0:00:03]}  Qe2 {[%clk 0:00:30]} 48. Qd4 {[%clk 0:00:03]}  Rb4 {[%clk 0:00:29]} 49. Qa7 {[%clk 0:00:02]}  Rb5 {[%clk 0:00:24]} 50. Qxf7+ {[%clk 0:00:02]}  Kh6 {[%clk 0:00:20]} 51. Qxf6+ {[%clk 0:00:03]}  Kh7 {[%clk 0:00:20]} 52. Qf5+ {[%clk 0:00:04]}  Kg7 {[%clk 0:00:20]} 53. Qf7+ {[%clk 0:00:04]}  Kh6 {[%clk 0:00:20]} 54. Qe6+ {[%clk 0:00:04]}  Kh5 {[%clk 0:00:18]} 55. Bc4 {[%clk 0:00:03]}  Rb6 {[%clk 0:00:11]} 56. Qh3+ {[%clk 0:00:03]}  Kg5 {[%clk 0:00:11]} 57. Bxe2 {[%clk 0:00:04]}  Rh6 {[%clk 0:00:11]} 58. Qf5# {[%clk 0:00:04]} 1-0


[Site "https://www.chess.com"]

[Event "Titled Tuesday Blitz August 08 Early 2023"]
[White "TrompeterImEther"]
[Black "NovoselovRoman"]
[WhiteElo "2460"]
[BlackElo "2601"]
[Result "1-0"]
[Round "11"]
[TimeControl "180+1"]
[Date "2023.08.08"]
[WhiteClock "0:00:06"]
[BlackClock "0:00:14"]
[Board "79"]

1. e4 {[%clk 0:03:00]}  d5 {[%clk 0:02:56]} 2. exd5 {[%clk 0:03:00]}  Qxd5 {[%clk 0:02:56]} 3. Nc3 {[%clk 0:03:00]}  Qd6 {[%clk 0:02:57]} 4. d4 {[%clk 0:02:59]}  Nf6 {[%clk 0:02:57]} 5. g3 {[%clk 0:02:54]}  c6 {[%clk 0:02:57]} 6. Bg2 {[%clk 0:02:54]}  Bf5 {[%clk 0:02:57]} 7. Nge2 {[%clk 0:02:54]}  e6 {[%clk 0:02:57]} 8. O-O {[%clk 0:02:55]}  Be7 {[%clk 0:02:57]} 9. Bf4 {[%clk 0:02:54]}  Qd8 {[%clk 0:02:58]} 10. Na4 {[%clk 0:02:51]}  Nbd7 {[%clk 0:02:49]} 11. c4 {[%clk 0:02:51]}  Nb6 {[%clk 0:02:48]} 12. Nxb6 {[%clk 0:02:50]}  axb6 {[%clk 0:02:47]} 13. Nc3 {[%clk 0:02:49]}  O-O {[%clk 0:02:45]} 14. Re1 {[%clk 0:02:46]}  Bd6 {[%clk 0:02:27]} 15. Be3 {[%clk 0:02:43]}  Qc7 {[%clk 0:02:26]} 16. Rc1 {[%clk 0:02:38]}  Rfd8 {[%clk 0:02:24]} 17. d5 {[%clk 0:02:38]}  Ng4 {[%clk 0:02:05]} 18. dxe6 {[%clk 0:02:04]}  Bxe6 {[%clk 0:02:00]} 19. Qb3 {[%clk 0:01:37]}  Nxe3 {[%clk 0:01:58]} 20. Rxe3 {[%clk 0:01:38]}  Bc5 {[%clk 0:01:54]} 21. Re2 {[%clk 0:01:36]}  Rd3 {[%clk 0:01:54]} 22. Be4 {[%clk 0:01:04]}  Rd4 {[%clk 0:01:53]} 23. Qc2 {[%clk 0:00:58]}  g6 {[%clk 0:01:42]} 24. b3 {[%clk 0:00:58]}  Rad8 {[%clk 0:01:41]} 25. Na4 {[%clk 0:00:51]}  Bf8 {[%clk 0:01:40]} 26. Nc3 {[%clk 0:00:44]}  Bg7 {[%clk 0:01:35]} 27. Nd1 {[%clk 0:00:43]}  h5 {[%clk 0:01:31]} 28. Ne3 {[%clk 0:00:43]}  h4 {[%clk 0:01:28]} 29. Bg2 {[%clk 0:00:42]}  hxg3 {[%clk 0:01:27]} 30. hxg3 {[%clk 0:00:41]}  Qd6 {[%clk 0:01:24]} 31. Kh2 {[%clk 0:00:25]}  Qb4 {[%clk 0:01:18]} 32. Rd1 {[%clk 0:00:20]}  Rxd1 {[%clk 0:01:13]} 33. Nxd1 {[%clk 0:00:21]}  Bf5 {[%clk 0:01:13]} 34. Qc1 {[%clk 0:00:18]}  Bf6 {[%clk 0:01:00]} 35. Ne3 {[%clk 0:00:18]}  Be6 {[%clk 0:01:00]} 36. Bf3 {[%clk 0:00:18]}  Bg5 {[%clk 0:00:50]} 37. Qb2 {[%clk 0:00:12]}  Bxe3 {[%clk 0:00:45]} 38. fxe3 {[%clk 0:00:09]}  Rd3 {[%clk 0:00:38]} 39. Kg2 {[%clk 0:00:09]}  b5 {[%clk 0:00:35]} 40. cxb5 {[%clk 0:00:09]}  Qxb5 {[%clk 0:00:35]} 41. Kf2 {[%clk 0:00:09]}  Rd1 {[%clk 0:00:31]} 42. Re1 {[%clk 0:00:07]}  Rd7 {[%clk 0:00:27]} 43. Rh1 {[%clk 0:00:06]}  Kf8 {[%clk 0:00:25]} 44. Qf6 {[%clk 0:00:06]}  Rd2+ {[%clk 0:00:18]} 45. Ke1 {[%clk 0:00:06]}  Ke8 {[%clk 0:00:14]} 46. Rh8+ {[%clk 0:00:06]}  Kd7 {[%clk 0:00:14]} 47. Qd8# {[%clk 0:00:06]} 1-0


[Site "https://www.chess.com"]

[Event "Titled Tuesday Blitz August 08 Early 2023"]
[White "MateoReyes"]
[Black "Heinemann, Josefine"]
[BlackFideId "12900460"]
[WhiteElo "2454"]
[BlackElo "2582"]
[Result "0-1"]
[Round "11"]
[TimeControl "180+1"]
[Date "2023.08.08"]
[WhiteClock "0:00:58"]
[BlackClock "0:01:16"]
[Board "81"]

1. Nf3 {[%clk 0:03:00]}  d5 {[%clk 0:02:58]} 2. d4 {[%clk 0:03:00]}  Nf6 {[%clk 0:02:54]} 3. c4 {[%clk 0:03:00]}  e6 {[%clk 0:02:52]} 4. Nc3 {[%clk 0:03:00]}  c5 {[%clk 0:02:52]} 5. e3 {[%clk 0:02:58]}  Nc6 {[%clk 0:02:50]} 6. Be2 {[%clk 0:02:57]}  dxc4 {[%clk 0:02:48]} 7. Bxc4 {[%clk 0:02:57]}  a6 {[%clk 0:02:49]} 8. O-O {[%clk 0:02:55]}  b5 {[%clk 0:02:49]} 9. Be2 {[%clk 0:02:54]}  Bb7 {[%clk 0:02:49]} 10. b3 {[%clk 0:02:52]}  cxd4 {[%clk 0:02:49]} 11. Nxd4 {[%clk 0:02:48]}  Nxd4 {[%clk 0:02:49]} 12. exd4 {[%clk 0:02:48]}  Be7 {[%clk 0:02:48]} 13. Bf3 {[%clk 0:02:46]}  Bxf3 {[%clk 0:02:48]} 14. Qxf3 {[%clk 0:02:46]}  O-O {[%clk 0:02:49]} 15. Rd1 {[%clk 0:02:42]}  Nd5 {[%clk 0:02:28]} 16. Ne4 {[%clk 0:02:41]}  Rc8 {[%clk 0:02:26]} 17. Bd2 {[%clk 0:02:36]}  Qb6 {[%clk 0:02:20]} 18. Qd3 {[%clk 0:02:30]}  h6 {[%clk 0:02:15]} 19. h3 {[%clk 0:02:28]}  Rfd8 {[%clk 0:02:15]} 20. Rac1 {[%clk 0:02:27]}  Bf6 {[%clk 0:02:12]} 21. Rxc8 {[%clk 0:02:16]}  Rxc8 {[%clk 0:02:12]} 22. Be3 {[%clk 0:02:13]}  Be7 {[%clk 0:02:10]} 23. Rc1 {[%clk 0:01:57]}  Rxc1+ {[%clk 0:01:59]} 24. Bxc1 {[%clk 0:01:56]}  Qc6 {[%clk 0:02:00]} 25. Bd2 {[%clk 0:01:53]}  Nf6 {[%clk 0:01:52]} 26. Nxf6+ {[%clk 0:01:44]}  Bxf6 {[%clk 0:01:53]} 27. Be3 {[%clk 0:01:44]}  g5 {[%clk 0:01:40]} 28. Kf1 {[%clk 0:01:43]}  Kg7 {[%clk 0:01:40]} 29. Ke2 {[%clk 0:01:43]}  Qxg2 {[%clk 0:01:40]} 30. a4 {[%clk 0:01:40]}  Qd5 {[%clk 0:01:28]} 31. f3 {[%clk 0:01:34]}  bxa4 {[%clk 0:01:27]} 32. bxa4 {[%clk 0:01:32]}  Qa2+ {[%clk 0:01:27]} 33. Kf1 {[%clk 0:01:28]}  Qxa4 {[%clk 0:01:27]} 34. d5 {[%clk 0:01:25]}  exd5 {[%clk 0:01:23]} 35. Qxd5 {[%clk 0:01:24]}  Qb5+ {[%clk 0:01:23]} 36. Qxb5 {[%clk 0:01:24]}  axb5 {[%clk 0:01:24]} 37. Ke2 {[%clk 0:01:24]}  b4 {[%clk 0:01:23]} 38. Kd3 {[%clk 0:01:24]}  b3 {[%clk 0:01:24]} 39. f4 {[%clk 0:01:19]}  Kg6 {[%clk 0:01:21]} 40. fxg5 {[%clk 0:01:18]}  hxg5 {[%clk 0:01:22]} 41. Bf2 {[%clk 0:01:13]}  Kf5 {[%clk 0:01:20]} 42. Bg3 {[%clk 0:01:12]}  Be5 {[%clk 0:01:20]} 43. Be1 {[%clk 0:01:11]}  b2 {[%clk 0:01:16]} 44. Kc2 {[%clk 0:01:10]}  f6 {[%clk 0:01:17]} 45. Bf2 {[%clk 0:01:10]}  Ke4 {[%clk 0:01:17]} 46. h4 {[%clk 0:01:09]}  Kf3 {[%clk 0:01:16]} 47. h5 {[%clk 0:01:03]}  Kxf2 {[%clk 0:01:15]} 48. h6 {[%clk 0:00:58]}  f5 {[%clk 0:01:16]} 0-1


[Site "https://www.chess.com"]

[Event "Titled Tuesday Blitz August 08 Early 2023"]
[White "Bilan, Danila"]
[Black "Jumanov, Elbek"]
[WhiteFideId "24161918"]
[BlackFideId "14202905"]
[WhiteElo "2580"]
[BlackElo "2441"]
[Result "0-1"]
[Round "11"]
[TimeControl "180+1"]
[Date "2023.08.08"]
[WhiteClock "0:00:11"]
[BlackClock "0:01:00"]
[Board "82"]

1. d4 {[%clk 0:02:55]}  Nf6 {[%clk 0:02:58]} 2. Nf3 {[%clk 0:02:55]}  g6 {[%clk 0:02:58]} 3. Bg5 {[%clk 0:02:55]}  Bg7 {[%clk 0:02:58]} 4. c3 {[%clk 0:02:55]}  O-O {[%clk 0:02:57]} 5. Nbd2 {[%clk 0:02:56]}  d5 {[%clk 0:02:57]} 6. e3 {[%clk 0:02:56]}  c5 {[%clk 0:02:58]} 7. Bd3 {[%clk 0:02:56]}  b6 {[%clk 0:02:58]} 8. e4 {[%clk 0:02:55]}  cxd4 {[%clk 0:02:44]} 9. Nxd4 {[%clk 0:02:55]}  dxe4 {[%clk 0:02:42]} 10. Nxe4 {[%clk 0:02:53]}  Bb7 {[%clk 0:02:41]} 11. Qe2 {[%clk 0:02:50]}  Nc6 {[%clk 0:02:30]} 12. Nxc6 {[%clk 0:02:47]}  Bxc6 {[%clk 0:02:28]} 13. O-O {[%clk 0:02:45]}  Qc7 {[%clk 0:02:22]} 14. Rfe1 {[%clk 0:02:31]}  Nd5 {[%clk 0:02:19]} 15. Bb5 {[%clk 0:02:24]}  Bb7 {[%clk 0:02:08]} 16. Rad1 {[%clk 0:02:12]}  a6 {[%clk 0:01:58]} 17. Ba4 {[%clk 0:02:04]}  b5 {[%clk 0:01:47]} 18. Bb3 {[%clk 0:02:03]}  Rad8 {[%clk 0:01:47]} 19. g3 {[%clk 0:01:24]}  h6 {[%clk 0:01:37]} 20. Bc1 {[%clk 0:01:22]}  e6 {[%clk 0:01:33]} 21. h4 {[%clk 0:01:12]}  Qc6 {[%clk 0:01:30]} 22. h5 {[%clk 0:01:09]}  Nf6 {[%clk 0:01:20]} 23. Bc2 {[%clk 0:00:55]}  Nxe4 {[%clk 0:01:03]} 24. Bxe4 {[%clk 0:00:13]}  Qxe4 {[%clk 0:01:01]} 25. Qxe4 {[%clk 0:00:13]}  Bxe4 {[%clk 0:01:00]} 26. Rxd8 {[%clk 0:00:13]}  Rxd8 {[%clk 0:01:00]} 27. Rxe4 {[%clk 0:00:11]}  Rd1+ {[%clk 0:01:00]} 0-1


[Site "https://www.chess.com"]

[Event "Titled Tuesday Blitz August 08 Early 2023"]
[White "Warchol, Kamil"]
[Black "vishwa_vijeta"]
[WhiteFideId "21858241"]
[WhiteElo "2449"]
[BlackElo "2565"]
[Result "1-0"]
[Round "11"]
[TimeControl "180+1"]
[Date "2023.08.08"]
[WhiteClock "0:00:32"]
[BlackClock "0:00:14"]
[Board "83"]

1. e4 {[%clk 0:03:00]}  c5 {[%clk 0:03:00]} 2. Nf3 {[%clk 0:02:58]}  d6 {[%clk 0:03:01]} 3. d4 {[%clk 0:02:57]}  cxd4 {[%clk 0:03:02]} 4. Nxd4 {[%clk 0:02:58]}  Nf6 {[%clk 0:03:03]} 5. Nc3 {[%clk 0:02:58]}  g6 {[%clk 0:03:04]} 6. Be3 {[%clk 0:02:58]}  Bg7 {[%clk 0:03:04]} 7. f3 {[%clk 0:02:58]}  O-O {[%clk 0:03:05]} 8. Qd2 {[%clk 0:02:59]}  Nc6 {[%clk 0:03:06]} 9. g4 {[%clk 0:02:58]}  Be6 {[%clk 0:03:05]} 10. Nxe6 {[%clk 0:02:57]}  fxe6 {[%clk 0:03:06]} 11. O-O-O {[%clk 0:02:56]}  Ne5 {[%clk 0:03:05]} 12. Be2 {[%clk 0:02:51]}  Qc8 {[%clk 0:03:05]} 13. h4 {[%clk 0:02:45]}  Nfd7 {[%clk 0:03:02]} 14. h5 {[%clk 0:02:44]}  Nc4 {[%clk 0:02:54]} 15. Bxc4 {[%clk 0:02:43]}  Qxc4 {[%clk 0:02:55]} 16. hxg6 {[%clk 0:02:41]}  hxg6 {[%clk 0:02:55]} 17. f4 {[%clk 0:02:41]}  Bxc3 {[%clk 0:02:48]} 18. bxc3 {[%clk 0:02:42]}  Qxa2 {[%clk 0:02:27]} 19. Qh2 {[%clk 0:02:40]}  Kf7 {[%clk 0:02:04]} 20. Qh7+ {[%clk 0:02:28]}  Ke8 {[%clk 0:02:03]} 21. e5 {[%clk 0:02:28]}  Qa3+ {[%clk 0:01:35]} 22. Kb1 {[%clk 0:01:54]}  Qxc3 {[%clk 0:00:57]} 23. Qxg6+ {[%clk 0:01:44]}  Kd8 {[%clk 0:00:54]} 24. exd6 {[%clk 0:01:21]}  Qb4+ {[%clk 0:00:47]} 25. Kc1 {[%clk 0:01:19]}  Qa3+ {[%clk 0:00:47]} 26. Kd2 {[%clk 0:01:18]}  Qxd6+ {[%clk 0:00:47]} 27. Ke2 {[%clk 0:01:14]}  Qa6+ {[%clk 0:00:47]} 28. Kf2 {[%clk 0:01:06]}  Qc4 {[%clk 0:00:27]} 29. Rd4 {[%clk 0:00:57]}  Qc6 {[%clk 0:00:14]} 30. Rhd1 {[%clk 0:00:56]}  e5 {[%clk 0:00:13]} 31. Qxc6 {[%clk 0:00:46]}  bxc6 {[%clk 0:00:12]} 32. Rxd7+ {[%clk 0:00:46]}  Ke8 {[%clk 0:00:12]} 33. f5 {[%clk 0:00:46]}  Rb8 {[%clk 0:00:10]} 34. Bc5 {[%clk 0:00:43]}  Rf7 {[%clk 0:00:09]} 35. Rxa7 {[%clk 0:00:42]}  Kf8 {[%clk 0:00:07]} 36. Rdd7 {[%clk 0:00:41]}  Re8 {[%clk 0:00:07]} 37. Rxe7 {[%clk 0:00:37]}  Rfxe7 {[%clk 0:00:06]} 38. Rxe7 {[%clk 0:00:37]}  Rxe7 {[%clk 0:00:06]} 39. f6 {[%clk 0:00:37]}  Kf7 {[%clk 0:00:07]} 40. Bxe7 {[%clk 0:00:36]}  Ke6 {[%clk 0:00:08]} 41. g5 {[%clk 0:00:36]}  Kd5 {[%clk 0:00:09]} 42. g6 {[%clk 0:00:36]}  Kc4 {[%clk 0:00:09]} 43. g7 {[%clk 0:00:36]}  Kc3 {[%clk 0:00:10]} 44. g8=Q {[%clk 0:00:37]}  Kb2 {[%clk 0:00:11]} 45. Qc4 {[%clk 0:00:36]}  Kb1 {[%clk 0:00:12]} 46. c3 {[%clk 0:00:36]}  Ka1 {[%clk 0:00:13]} 47. Qb3 {[%clk 0:00:33]}  e4 {[%clk 0:00:12]} 48. Ba3 {[%clk 0:00:32]}  e3+ {[%clk 0:00:13]} 49. Ke2 {[%clk 0:00:32]}  c5 {[%clk 0:00:14]} 50. Qb2# {[%clk 0:00:32]} 1-0


[Site "https://www.chess.com"]